bitfinex-derivatives/quotes_BTCF0:USTF0_20241003
["timestamp","ask_amount","ask_price","bid_price","bid_amount"]
[1727916579054,0.081936,61032.0,61021.0,0.08195]
[1727916579443,0.081936,61032.0,61019.0,0.3608]
[1727916579444,0.081938,61031.0,61019.0,0.3608]
[1727916579646,0.17,61022.0,61019.0,0.3608]
[1727916579853,0.081952,61020.0,61019.0,0.3608]
[1727916581146,0.081952,61020.0,61019.0,0.3628]
[1727916581547,0.573592,61020.0,61006.0,0.08577]
[1727916581858,0.17,61011.0,61007.0,0.06449166]
[1727916582159,0.251967,61009.0,61006.0,0.14646266]
[1727916582369,0.251967,61009.0,61006.0,0.06449166]
[1727916582552,0.251967,61009.0,61005.0,0.06449166]
[1727916582749,0.251967,61009.0,61004.0,0.06449166]
[1727916582951,0.251967,61009.0,61003.0,0.06449166]
[1727916583154,0.081974,61004.0,61003.0,0.06449166]
[1727916583454,0.081978,61001.0,61000.0,0.42529166]
[1727916583653,0.081978,61001.0,61000.0,0.3608]
[1727916584447,0.074978,61001.0,61000.0,0.3608]
[1727916584848,0.082978,61001.0,61000.0,0.011]
[1727916585046,0.082978,61001.0,61000.0,0.021]
[1727916585047,0.083978,61001.0,61000.0,0.021]
[1727916586354,0.083978,61001.0,61000.0,0.3818]
[1727916586355,0.002,61001.0,61000.0,0.3818]
[1727916586556,0.17245949,61014.0,61000.0,0.3818]
[1727916586857,0.17245949,61014.0,61002.0,0.06384395]
[1727916586858,0.17,61010.0,61002.0,0.06384395]
[1727916587054,0.18804693,61014.0,61010.0,0.081965]
[1727916587647,0.27804693,61014.0,61005.0,0.06384395]
[1727916587851,0.01804693,61014.0,61010.0,0.3608]
[1727916588059,0.01804693,61014.0,61013.0,0.081962]
[1727916588258,0.02104693,61014.0,61013.0,0.081962]
[1727916588456,0.02104693,61014.0,61013.0,0.14580595]
[1727916589061,0.01804693,61014.0,61013.0,0.14580595]
[1727916589246,0.01804693,61014.0,61013.0,0.081962]
[1727916589247,0.00245949,61014.0,61013.0,0.081962]
[1727916589656,0.00245949,61014.0,61013.0,0.573642]
[1727916589870,0.00245949,61014.0,61013.0,0.65428063]
[1727916590053,0.00245949,61014.0,61013.0,0.77919276]
[1727916590247,0.00245949,61014.0,61013.0,0.65338279]
[1727916590450,0.00645949,61014.0,61013.0,0.65338485]
[1727916590862,0.00645949,61014.0,61013.0,0.77829816]
[1727916591056,0.01245949,61014.0,61013.0,0.77929816]
[1727916591253,0.01245949,61014.0,61013.0,0.65438485]
[1727916591454,0.00645949,61014.0,61013.0,0.77832617]
[1727916591857,0.01,61014.0,61013.0,0.69956155]
[1727916592060,0.01,61014.0,61013.0,1.06036155]
[1727916592661,0.01,61014.0,61013.0,1.06035307]
[1727916593160,0.01,61014.0,61013.0,1.15767406]
[1727916594369,0.01,61014.0,61013.0,1.06035307]
[1727916594865,0.01,61014.0,61013.0,0.56867307]
[1727916595367,0.01565051,61026.0,61013.0,0.48671107]
[1727916595572,0.081944,61026.0,61025.0,0.06393528]
[1727916596164,0.08195,61022.0,61021.0,0.07991911]
[1727916596470,0.08195,61022.0,61021.0,0.20482907]
[1727916596660,0.26,61023.0,61021.0,0.20482907]
[1727916596865,0.081953,61019.0,61018.0,0.07991911]
[1727916597167,0.26,61023.0,61018.0,0.1249186]
[1727916597365,0.26,61023.0,61018.0,0.08002125]
[1727916597566,0.081953,61019.0,61018.0,0.08002125]
[1727916597759,0.081953,61019.0,61018.0,0.20494131]
[1727916598064,0.090953,61019.0,61018.0,0.08102125]
[1727916598267,0.090953,61019.0,61018.0,0.12591957]
[1727916598767,0.090953,61019.0,61018.0,0.20598885]
[1727916599063,0.086953,61019.0,61018.0,0.12591957]
[1727916599763,0.086953,61019.0,61018.0,0.12691957]
[1727916600260,0.005,61019.0,61018.0,0.20887457]
[1727916600466,0.0568,61028.0,61024.0,0.081947]
[1727916600467,0.01606388,61025.0,61024.0,0.081947]
[1727916600668,0.623259,61033.0,61032.0,0.081936]
[1727916600669,0.002459,61033.0,61032.0,0.081936]
[1727916600873,0.002459,61033.0,61032.0,0.661936]
[1727916601164,0.002459,61033.0,61032.0,0.93883033]
[1727916601353,0.084394,61033.0,61032.0,0.78682281]
[1727916601555,0.344394,61033.0,61032.0,0.2210243]
[1727916601751,0.355394,61033.0,61032.0,0.12588681]
[1727916601958,0.30619006,61033.0,61032.0,0.70588681]
[1727916602572,0.011,61033.0,61032.0,0.78782281]
[1727916602956,0.011,61033.0,61032.0,0.93983544]
[1727916603155,0.021,61033.0,61032.0,0.94083544]
[1727916603968,0.356935,61033.0,61032.0,0.85789944]
[1727916604193,0.31593387,61033.0,61032.0,0.85789944]
[1727916604370,0.31593387,61033.0,61032.0,0.70588681]
[1727916604669,0.32593387,61033.0,61032.0,0.80220744]
[1727916604879,0.32593387,61033.0,61032.0,0.22220744]
[1727916605267,0.32193387,61033.0,61032.0,0.12488681]
[1727916606266,0.06493387,61033.0,61032.0,0.12488681]
[1727916606467,0.009,61033.0,61032.0,0.20682281]
[1727916606770,0.003,61033.0,61032.0,0.20682281]
[1727916607064,0.006,61033.0,61032.0,0.36083705]
[1727916607373,0.006,61033.0,61032.0,0.35983705]
[1727916607671,0.081932,61035.0,61032.0,0.27889985]
[1727916607967,0.26,61035.0,61033.0,0.27689985]
[1727916608270,0.26,61035.0,61032.0,0.002]
[1727916608271,0.0599,61043.0,61034.0,0.27689985]
[1727916608472,0.08192,61044.0,61042.0,0.081923]
[1727916608766,0.09765098,61044.0,61043.0,0.12488681]
[1727916609071,0.35765098,61044.0,61043.0,0.12488681]
[1727916609456,0.081921,61043.0,61042.0,0.081923]
[1727916609660,0.081921,61043.0,61042.0,0.20680108]
[1727916610063,0.01573098,61044.0,61042.0,0.20680108]
[1727916610258,0.12505809,61048.0,61047.0,0.081916]
[1727916610259,0.06315809,61048.0,61047.0,0.081916]
[1727916610574,0.06315809,61048.0,61047.0,0.20679172]
[1727916610575,0.00245809,61048.0,61047.0,0.20679172]
[1727916610865,0.01568503,61062.0,61047.0,1.81099895]
[1727916611064,0.081902,61058.0,61056.0,0.09631788]
[1727916611263,0.081902,61058.0,61057.0,0.12487572]
[1727916611672,0.341902,61058.0,61053.0,0.09631788]
[1727916611860,0.081905,61055.0,61054.0,0.12484964]
[1727916612067,0.26,61055.0,61054.0,0.18903659]
[1727916612369,0.26,61055.0,61054.0,0.12484964]
[1727916612569,1.35136,61055.0,61054.0,0.02504964]
[1727916612757,1.433265,61055.0,61054.0,0.02504964]
[1727916613360,1.433265,61055.0,61054.0,0.02604964]
[1727916613570,1.71216,61055.0,61049.0,0.06418695]
[1727916613764,0.081915,61048.0,61046.0,0.06418695]
[1727916614064,0.081915,61048.0,61044.0,0.0802161]
[1727916614277,0.08192,61044.0,61043.0,0.08267316]
[1727916614461,0.37670127,61055.0,61043.0,0.08267316]
[1727916614770,0.081902,61058.0,61054.0,0.082907]
[1727916614971,0.36325703,61073.0,61054.0,0.082907]
[1727916614972,0.25,61072.0,61063.0,0.081894]
[1727916615276,0.25,61072.0,61063.0,0.14605037]
[1727916615277,0.081893,61064.0,61063.0,0.14605037]
[1727916615572,0.0692,61072.0,61071.0,0.081884]
[1727916615775,0.08433803,61073.0,61071.0,0.06413429]
[1727916615966,0.08433803,61073.0,61072.0,0.06413429]
[1727916616274,0.08433803,61073.0,61071.0,0.081884]
[1727916616764,0.08433803,61073.0,61072.0,0.06409854]
[1727916616961,0.08433803,61073.0,61071.0,0.081884]
[1727916617158,0.08533803,61073.0,61068.0,0.0802161]
[1727916617360,0.08533803,61073.0,61071.0,0.1459372]
[1727916617567,0.08533803,61073.0,61071.0,0.0640542]
[1727916617769,0.08533803,61073.0,61065.0,0.0802161]
[1727916617770,0.08533803,61073.0,61070.0,0.0640542]
[1727916617967,0.08633803,61073.0,61070.0,0.0640542]
[1727916618176,0.08633803,61073.0,61071.0,0.081883]
[1727916619074,0.081882,61072.0,61069.0,0.0640542]
[1727916619485,0.081882,61072.0,61069.0,0.081886]
[1727916620668,0.082882,61072.0,61069.0,0.081886]
[1727916620962,0.081884,61071.0,61069.0,0.081886]
[1727916621376,0.001,61072.0,61071.0,0.081884]
[1727916622374,0.08433903,61073.0,61071.0,0.081884]
[1727916622375,0.03616829,61073.0,61071.0,0.081884]
[1727916622672,0.081882,61072.0,61071.0,0.081884]
[1727916623582,0.081882,61072.0,61067.0,0.081889]
[1727916623583,0.081883,61072.0,61067.0,0.081889]
[1727916623974,0.25,61071.0,61062.0,0.0640542]
[1727916624280,0.001,61072.0,61053.0,0.09631788]
[1727916624281,0.25,61063.0,61061.0,0.081897]
[1727916624776,0.081899,61060.0,61057.0,0.3608]
[1727916625383,0.25,61063.0,61057.0,0.3608]
[1727916625571,0.081891,61066.0,61062.0,0.081895]
[1727916625767,0.081892,61065.0,61062.0,0.081895]
[1727916626170,0.251,61072.0,61060.0,0.0640542]
[1727916626475,0.251,61072.0,61067.0,0.081889]
[1727916626476,0.01602387,61072.0,61067.0,0.081889]
[1727916626678,0.05096586,61070.0,61067.0,0.081889]
[1727916627472,0.05096586,61070.0,61057.0,0.6108]
[1727916627674,0.05096586,61070.0,61068.0,0.081888]
[1727916628172,0.081886,61069.0,61068.0,0.081888]
[1727916628677,0.081903,61057.0,61055.0,0.0038]
[1727916628872,0.081903,61057.0,61050.0,0.3608]
[1727916629076,0.26,61051.0,61050.0,0.442712]
[1727916629379,0.25,61052.0,61045.0,0.0626]
[1727916629578,0.081912,61050.0,61047.0,0.081915]
[1727916629879,0.081917,61046.0,61043.0,0.08437706]
[1727916630079,0.26,61044.0,61043.0,0.08437706]
[1727916630384,0.235,61044.0,61043.0,0.08437706]
[1727916630980,0.235,61044.0,61043.0,0.08837706]
[1727916631171,0.235,61044.0,61043.0,0.09337706]
[1727916631567,0.235,61044.0,61043.0,0.08937706]
[1727916632078,0.2761914,61049.0,61043.0,0.00745706]
[1727916632277,0.26,61049.0,61046.0,0.081917]
[1727916632779,0.081912,61050.0,61046.0,0.081917]
[1727916633282,0.081901,61058.0,61049.0,0.25]
[1727916633470,0.081903,61057.0,61053.0,0.081908]
[1727916633778,0.081903,61057.0,61053.0,0.58]
[1727916633982,0.37686152,61059.0,61056.0,0.081904]
[1727916634277,0.37686152,61059.0,61053.0,0.0640542]
[1727916634278,0.25,61057.0,61053.0,0.0640542]
[1727916634485,0.25,61057.0,61049.0,0.0802161]
[1727916634486,0.092902,61058.0,61055.0,0.081905]
[1727916635078,0.081903,61057.0,61055.0,0.081905]
[1727916635381,0.081903,61057.0,61055.0,0.1459592]
[1727916635782,0.081904,61056.0,61055.0,0.1459592]
[1727916635982,0.38986152,61059.0,61055.0,0.1459592]
[1727916636181,0.38986152,61059.0,61056.0,0.0640542]
[1727916636490,0.081901,61058.0,61057.0,0.06421264]
[1727916636675,0.081904,61056.0,61055.0,0.06421264]
[1727916636981,0.081904,61056.0,61055.0,0.06921855]
[1727916637176,0.081904,61056.0,61055.0,0.005]
[1727916637378,0.086902,61057.0,61056.0,0.001]
[1727916637877,0.005,61057.0,61055.0,0.06421997]
[1727916638078,0.089904,61056.0,61055.0,0.06521997]
[1727916638287,0.349904,61056.0,61055.0,0.001]
[1727916638478,1.433264,61056.0,61050.0,0.06426022]
[1727916638787,1.433264,61056.0,61048.0,0.06426022]
[1727916638788,0.081913,61049.0,61048.0,0.06426022]
[1727916640479,0.081913,61049.0,61047.0,0.06426022]
[1727916640676,0.081916,61047.0,61046.0,0.06426022]
[1727916641676,0.081917,61046.0,61045.0,0.06426022]
[1727916642076,0.02761032,61049.0,61045.0,0.06426022]
[1727916642275,0.023,61049.0,61048.0,0.082915]
[1727916642478,0.1392,61063.0,61054.0,0.081906]
[1727916642479,0.081905,61055.0,61054.0,0.081906]
[1727916642677,0.37664001,61059.0,61054.0,0.081906]
[1727916642889,0.081901,61058.0,61057.0,0.06429289]
[1727916643086,0.37664001,61059.0,61056.0,0.06429289]
[1727916643282,0.081902,61057.0,61056.0,0.06429289]
[1727916643477,0.081905,61055.0,61054.0,0.06429289]
[1727916643680,0.081905,61055.0,61051.0,0.06429289]
[1727916643888,0.26,61052.0,61049.0,0.06429289]
[1727916644089,0.081915,61048.0,61047.0,0.06429289]
[1727916644289,0.081902,61057.0,61051.0,0.08191]
[1727916644290,0.331902,61057.0,61051.0,0.08191]
[1727916644585,0.081908,61054.0,61053.0,0.081908]
[1727916645092,0.014,61057.0,61051.0,0.06431231]
[1727916645291,0.014,61057.0,61056.0,0.081904]
[1727916645586,0.081905,61055.0,61054.0,0.001]
[1727916646089,0.014,61057.0,61051.0,0.06428781]
[1727916646383,0.081909,61052.0,61051.0,0.06528781]
[1727916646583,0.084909,61052.0,61051.0,0.14719881]
[1727916646996,0.084909,61052.0,61051.0,0.14619881]
[1727916647175,0.081909,61052.0,61051.0,0.14619881]
[1727916647493,0.081909,61052.0,61051.0,0.082911]
[1727916647789,0.081909,61052.0,61051.0,0.081911]
[1727916647987,0.084909,61052.0,61051.0,0.082911]
[1727916648287,0.084909,61052.0,61051.0,0.14721195]
[1727916648881,0.084909,61052.0,61051.0,0.14821195]
[1727916649191,0.04392096,61052.0,61051.0,0.14821195]
[1727916649986,0.003,61052.0,61051.0,0.14821195]
[1727916650685,0.01857344,61052.0,61051.0,0.14821195]
[1727916651384,0.01857344,61052.0,61051.0,0.083911]
[1727916653892,0.27048244,61052.0,61051.0,0.06639756]
[1727916654088,0.27048244,61052.0,61051.0,0.002]
[1727916655492,0.36048244,61052.0,61051.0,0.002]
[1727916655693,1.45188244,61052.0,61043.0,0.00245706]
[1727916655894,0.34192,61044.0,61043.0,0.00245706]
[1727916656694,0.081924,61041.0,61040.0,0.06439756]
[1727916657083,0.26,61044.0,61039.0,0.06439756]
[1727916657084,0.081925,61040.0,61039.0,0.06439756]
[1727916657284,0.081925,61040.0,61039.0,0.14632456]
[1727916657486,0.081925,61040.0,61039.0,0.081927]
[1727916658892,0.01546574,61044.0,61039.0,0.003]
[1727916659088,0.081921,61044.0,61043.0,0.081921]
[1727916659397,0.081921,61044.0,61042.0,0.06449896]
[1727916659398,0.3608,61049.0,61047.0,0.081916]
[1727916659700,0.081915,61048.0,61047.0,0.064484]
[1727916660087,0.081915,61048.0,61047.0,0.1464]
[1727916660291,0.081917,61046.0,61045.0,0.064484]
[1727916660703,0.081917,61046.0,61045.0,0.146403]
[1727916661890,0.082917,61046.0,61045.0,0.146403]
[1727916662493,0.081917,61046.0,61045.0,0.146403]
[1727916662689,0.082917,61046.0,61045.0,0.146403]
[1727916663295,0.346917,61046.0,61045.0,0.065484]
[1727916663595,0.346917,61046.0,61045.0,0.04935912]
[1727916663794,0.342917,61046.0,61044.0,0.04835912]
[1727916663994,0.346917,61046.0,61045.0,0.001]
[1727916664499,0.346917,61046.0,61036.0,0.04835912]
[1727916664500,1.35644,61046.0,61036.0,0.04835912]
[1727916664700,0.081931,61036.0,61035.0,0.04835912]
[1727916665002,0.081932,61035.0,61034.0,0.04835912]
[1727916665191,0.081935,61033.0,61032.0,0.04835912]
[1727916665497,0.341932,61035.0,61030.0,0.04835912]
[1727916665706,0.341932,61035.0,61026.0,0.064484]
[1727916665707,0.081939,61030.0,61029.0,0.04835912]
[1727916665888,0.081932,61035.0,61029.0,0.26]
[1727916666206,0.3608,61036.0,61032.0,0.064484]
[1727916666386,0.081925,61041.0,61039.0,0.081925]
[1727916666590,0.081925,61041.0,61039.0,0.14634271]
[1727916666791,0.081925,61040.0,61039.0,0.14634271]
[1727916667095,0.01829214,61043.0,61041.0,0.081924]
[1727916667396,0.01829214,61043.0,61042.0,0.081923]
[1727916667397,0.00245824,61043.0,61042.0,0.081923]
[1727916667895,0.00245824,61043.0,61040.0,0.66037144]
[1727916668096,0.08437924,61043.0,61042.0,0.04830593]
[1727916668495,0.08537924,61043.0,61042.0,0.04830593]
[1727916668690,0.081927,61039.0,61037.0,0.04830593]
[1727916668997,0.081931,61036.0,61035.0,0.13023793]
[1727916669191,0.081931,61036.0,61035.0,0.081932]
[1727916670391,0.081931,61036.0,61035.0,0.082932]
[1727916670392,0.086931,61036.0,61035.0,0.082932]
[1727916671395,0.087931,61036.0,61035.0,0.001]
[1727916671607,0.087931,61036.0,61035.0,0.04931598]
[1727916671992,0.087931,61036.0,61035.0,0.001]
[1727916672188,0.087931,61036.0,61035.0,0.002]
[1727916672605,0.087931,61036.0,61035.0,0.13224798]
[1727916672900,0.087931,61036.0,61035.0,0.083932]
[1727916673101,0.09842563,61036.0,61035.0,0.082932]
[1727916673298,0.10342563,61036.0,61035.0,0.05031007]
[1727916673504,0.10342563,61036.0,61035.0,0.002]
[1727916675708,0.10342563,61036.0,61035.0,0.083932]
[1727916676595,0.10342563,61036.0,61035.0,0.002]
[1727916682605,0.02149463,61036.0,61035.0,0.083932]
[1727916683608,0.10342563,61036.0,61035.0,0.083932]
[1727916684303,0.006,61036.0,61035.0,0.575452]
[1727916684697,0.006,61036.0,61035.0,0.638752]
[1727916685103,0.006,61036.0,61035.0,0.84399853]
[1727916685302,0.00245824,61043.0,61035.0,1.01206653]
[1727916685505,0.3608,61053.0,61052.0,0.081909]
[1727916685812,0.0716,61061.0,61053.0,0.081908]
[1727916686113,0.081904,61056.0,61055.0,0.04828347]
[1727916686314,0.081899,61060.0,61054.0,0.0639]
[1727916686512,0.01602372,61061.0,61060.0,0.081898]
[1727916686716,0.01602372,61061.0,61054.0,0.12828718]
[1727916686717,0.081898,61060.0,61059.0,0.04825853]
[1727916686904,0.25,61061.0,61055.0,0.04825853]
[1727916687100,0.081907,61054.0,61053.0,0.04825853]
[1727916687308,0.25,61057.0,61051.0,0.13016853]
[1727916687309,0.081908,61053.0,61051.0,0.13016853]
[1727916687707,0.081909,61052.0,61051.0,0.04825853]
[1727916688213,0.081909,61052.0,61050.0,0.40905853]
[1727916688613,0.081909,61052.0,61051.0,0.001]
[1727916688811,0.341909,61052.0,61051.0,0.001]
[1727916689211,0.331909,61052.0,61051.0,0.001]
[1727916689413,0.081909,61052.0,61051.0,0.001]
[1727916689613,0.255,61061.0,61051.0,0.001]
[1727916689817,0.081908,61053.0,61051.0,0.001]
[1727916690008,0.081908,61053.0,61051.0,0.04925853]
[1727916690516,0.0718,61063.0,61060.0,0.081898]
[1727916690517,0.01544821,61061.0,61060.0,0.081898]
[1727916690831,0.081895,61063.0,61060.0,0.13013034]
[1727916691121,0.081897,61062.0,61060.0,0.13013034]
[1727916691313,0.081897,61061.0,61060.0,0.13013034]
[1727916691713,0.081897,61061.0,61060.0,0.13113034]
[1727916692013,0.081897,61061.0,61060.0,0.082898]
[1727916692415,0.331897,61061.0,61060.0,0.001]
[1727916692823,1.173217,61061.0,61057.0,0.06431888]
[1727916693014,0.341901,61058.0,61057.0,0.06431888]
[1727916693618,1.433261,61058.0,61057.0,0.06431888]
[1727916694022,1.433261,61058.0,61057.0,0.06531888]
[1727916694523,1.44922716,61058.0,61057.0,0.06531888]
[1727916694721,1.44922716,61058.0,61050.0,0.08048397]
[1727916694722,0.081911,61051.0,61050.0,0.08048397]
[1727916694933,0.341911,61051.0,61050.0,0.08048397]
[1727916695829,0.341911,61051.0,61038.0,0.0038]
[1727916695830,0.081917,61046.0,61038.0,0.0038]
[1727916696121,0.081928,61038.0,61037.0,0.3608]
[1727916697318,0.09784095,61038.0,61037.0,0.442729]
[1727916697509,0.09784095,61038.0,61037.0,0.3608]
[1727916698825,0.081928,61038.0,61037.0,0.442729]
[1727916699318,0.083928,61038.0,61037.0,0.3618]
[1727916699626,0.086928,61038.0,61037.0,0.3618]
[1727916699810,0.087928,61038.0,61037.0,0.3608]
[1727916700314,0.006,61038.0,61037.0,0.443729]
[1727916700911,0.009,61038.0,61037.0,0.444729]
[1727916701622,0.090928,61038.0,61037.0,0.444729]
[1727916701821,0.009,61038.0,61037.0,0.444729]
[1727916702415,0.005,61038.0,61037.0,0.444729]
[1727916702613,0.01768871,61038.0,61037.0,0.443729]
[1727916702816,0.004,61038.0,61037.0,0.443729]
[1727916703012,0.004,61038.0,61037.0,0.442729]
[1727916703219,0.04492933,61039.0,61037.0,0.49100878]
[1727916703420,0.04492933,61039.0,61038.0,0.081928]
[1727916703620,0.002,61038.0,61037.0,0.41007978]
[1727916703822,0.002,61038.0,61037.0,0.443729]
[1727916704021,0.002,61038.0,61037.0,0.49201061]
[1727916704421,0.083927,61039.0,61037.0,0.49201061]
[1727916705229,0.083927,61039.0,61037.0,0.13121061]
[1727916705418,0.083927,61039.0,61038.0,0.04828161]
[1727916706030,0.081928,61038.0,61033.0,0.04828161]
[1727916706327,0.081928,61038.0,61028.0,0.04828161]
[1727916706328,0.081939,61030.0,61028.0,0.04828161]
[1727916706635,0.5308,61034.0,61025.0,0.00245796]
[1727916706636,0.081944,61026.0,61025.0,0.00245796]
[1727916708926,0.081944,61026.0,61025.0,0.00445796]
[1727916709234,0.09755192,61026.0,61025.0,0.00545796]
[1727916710040,0.45835192,61026.0,61025.0,0.00545796]
[1727916710827,0.45835192,61026.0,61025.0,0.003]
[1727916713538,0.081952,61020.0,61017.0,0.04828161]
[1727916713725,0.37640792,61026.0,61017.0,0.04828161]
[1727916713928,0.37640792,61026.0,61016.0,0.3608]
[1727916713929,0.17,61024.0,61022.0,0.081948]
[1727916714133,0.081947,61024.0,61022.0,0.081949]
[1727916714638,0.081948,61023.0,61022.0,0.081949]
[1727916715230,0.081948,61023.0,61022.0,0.085949]
[1727916715637,0.081948,61023.0,61022.0,0.081949]
[1727916715836,0.081948,61023.0,61022.0,0.085949]
[1727916716537,0.081948,61023.0,61022.0,0.090949]
[1727916719731,0.081948,61023.0,61022.0,0.009]
[1727916720543,0.081948,61023.0,61022.0,0.090949]
[1727916721138,0.081948,61023.0,61022.0,0.009]
[1727916723549,0.081949,61022.0,61013.0,0.04840541]
[1727916723753,0.081963,61012.0,61011.0,0.04840541]
[1727916723944,0.081963,61012.0,61009.0,0.00245833]
[1727916723945,0.17,61012.0,61009.0,0.00245833]
[1727916724135,0.081967,61009.0,61003.0,0.04840541]
[1727916724475,0.17,61004.0,60998.0,0.04840541]
[1727916724642,0.25198,60999.0,60996.0,0.04840541]
[1727916724952,0.25198,60999.0,60995.0,0.4261]
[1727916725937,0.25198,60999.0,60996.0,0.006]
[1727916727148,0.25298,60999.0,60996.0,0.006]
[1727916727836,0.25398,60999.0,60995.0,0.521086]
[1727916728441,0.171,60999.0,60996.0,0.005]
[1727916728638,0.081983,60997.0,60996.0,0.005]
[1727916729040,0.081983,60997.0,60996.0,0.007]
[1727916729648,0.171,60999.0,60995.0,0.3668]
[1727916729844,0.001,60997.0,60995.0,0.3668]
[1727916730041,0.001,60997.0,60995.0,0.448785]
[1727916730237,0.001,60997.0,60996.0,0.081984]
[1727916730551,0.17,61014.0,61006.0,0.08197]
[1727916730845,0.081964,61011.0,61006.0,0.08197]
[1727916731249,0.251966,61010.0,61006.0,0.08197]
[1727916731445,0.081966,61010.0,61002.0,0.17]
[1727916731658,0.005,61011.0,61006.0,0.17]
[1727916731955,0.00245938,61017.0,61010.0,0.251966]
[1727916732248,0.00245938,61017.0,61016.0,0.30017404]
[1727916732462,0.00245938,61017.0,61016.0,0.251958]
[1727916733246,0.00845938,61017.0,61016.0,0.743638]
[1727916733443,0.00845938,61017.0,61016.0,1.343638]
[1727916733646,0.00845938,61017.0,61016.0,0.743638]
[1727916734149,0.00845938,61017.0,61016.0,0.744638]
[1727916734444,0.00845938,61017.0,61016.0,0.082958]
[1727916734948,0.00245938,61017.0,61016.0,0.081958]
[1727916735154,0.00845938,61017.0,61016.0,0.083958]
[1727916735742,0.00245938,61017.0,61016.0,0.082958]
[1727916738454,0.00245938,61017.0,61016.0,0.083958]
[1727916738954,0.00645938,61017.0,61016.0,0.082958]
[1727916739346,0.02266624,61017.0,61016.0,0.082958]
[1727916739549,0.01866624,61017.0,61016.0,0.082958]
[1727916739750,0.10562224,61017.0,61016.0,0.001]
[1727916741657,0.59730224,61017.0,61016.0,0.001]
[1727916742048,0.10562224,61017.0,61016.0,0.001]
[1727916742955,0.10062224,61017.0,61016.0,0.001]
[1727916743148,0.10562224,61017.0,61016.0,0.001]
[1727916746855,0.081964,61011.0,61002.0,0.3608]
[1727916747061,0.081964,61011.0,60995.0,0.0038]
[1727916747062,0.081974,61004.0,60995.0,0.0038]
[1727916747262,0.081986,60995.0,60994.0,0.442787]
[1727916747956,0.081986,60995.0,60994.0,0.3608]
[1727916748258,0.0409584,60995.0,60994.0,0.3608]
[1727916748761,0.05656608,60995.0,60994.0,0.3608]
[1727916749756,0.05756608,60995.0,60994.0,0.3698]
[1727916749949,0.05856608,60995.0,60994.0,0.3788]
[1727916750854,0.41936608,60995.0,60994.0,0.018]
[1727916752464,0.081991,60991.0,60987.0,0.081996]
[1727916752760,0.251991,60991.0,60987.0,0.081996]
[1727916753660,0.251991,60991.0,60990.0,0.01245937]
[1727916763169,0.5308,60991.0,60978.0,0.0735]
[1727916763362,0.5308,60991.0,60978.0,0.151708]
[1727916763363,0.17,60979.0,60978.0,0.151708]
[1727916764261,0.17,60979.0,60978.0,0.165708]
[1727916765761,0.171,60979.0,60978.0,0.179708]
[1727916766068,0.172,60979.0,60978.0,0.176708]
[1727916766667,0.01815469,60979.0,60978.0,0.176708]
[1727916767066,0.082004,60982.0,60981.0,0.082005]
[1727916767566,0.01550621,60984.0,60980.0,0.17]
[1727916767773,0.081996,60988.0,60983.0,0.3608]
[1727916767962,0.081996,60988.0,60987.0,0.081996]
[1727916768567,0.081996,60988.0,60984.0,0.0724]
[1727916768568,0.17,60994.0,60984.0,0.0724]
[1727916768767,0.3608,61001.0,60991.0,0.081991]
[1727916768968,0.081968,61009.0,61007.0,0.081969]
[1727916769169,0.3608,61013.0,61000.0,0.17]
[1727916769365,0.3608,61013.0,61011.0,0.17]
[1727916769567,0.00245938,61017.0,61012.0,0.6446]
[1727916769768,0.081958,61016.0,61013.0,0.081962]
[1727916769964,0.00245938,61017.0,61013.0,0.081962]
[1727916770170,0.01803712,61017.0,61015.0,0.081958]
[1727916770474,0.011,61013.0,61012.0,0.0646]
[1727916770673,0.092962,61013.0,61012.0,0.0646]
[1727916770977,0.081963,61012.0,61011.0,0.001]
[1727916771168,0.251963,61012.0,61011.0,0.001]
[1727916771776,0.011,61013.0,61011.0,0.001]
[1727916771974,0.011,61013.0,61012.0,0.251963]
[1727916772167,0.02197528,61017.0,61016.0,0.081958]
[1727916772363,0.01897528,61017.0,61016.0,0.081958]
[1727916772768,0.01797528,61017.0,61016.0,0.081958]
[1727916773581,0.01797528,61017.0,61016.0,0.083958]
[1727916775475,0.01797528,61017.0,61016.0,0.082958]
[1727916775667,0.01897528,61017.0,61016.0,0.082958]
[1727916776073,0.01997528,61017.0,61016.0,0.081958]
[1727916776274,0.02097528,61017.0,61016.0,0.081958]
[1727916777483,0.02097528,61017.0,61016.0,0.082958]
[1727916779569,0.01897528,61017.0,61016.0,0.082958]
[1727916779770,0.02097528,61017.0,61016.0,0.083958]
[1727916780472,0.10293128,61017.0,61016.0,0.002]
[1727916780679,0.10093128,61017.0,61016.0,0.001]
[1727916780976,0.10293128,61017.0,61016.0,0.002]
[1727916782681,0.10093128,61017.0,61016.0,0.001]
[1727916782973,0.081962,61013.0,61009.0,0.081967]
[1727916783175,0.17,61011.0,61009.0,0.081967]
[1727916783766,0.17,61015.0,61005.0,0.0643]
[1727916783966,0.01897528,61017.0,61016.0,0.081958]
[1727916784480,0.0165159,61017.0,61016.0,0.081958]
[1727916785175,0.06683382,61017.0,61016.0,0.081958]
[1727916785375,0.23683382,61017.0,61016.0,0.081958]
[1727916785769,0.002,61011.0,61005.0,0.0643]
[1727916786076,0.002,61011.0,61005.0,0.146272]
[1727916786077,0.17,61006.0,61005.0,0.146272]
[1727916786377,0.22031792,61006.0,61005.0,0.146272]
[1727916786768,0.30228892,61006.0,61005.0,0.0643]
[1727916787077,0.30228892,61006.0,61005.0,0.0683]
[1727916787376,0.30228892,61006.0,61005.0,0.085972]
[1727916787682,0.31795726,61006.0,61005.0,0.004]
[1727916787974,0.081976,61002.0,61001.0,0.3608]
[1727916788178,0.30229392,61002.0,61001.0,0.3608]
[1727916789180,0.30429392,61002.0,61001.0,0.3618]
[1727916789676,0.30429392,61002.0,61001.0,0.001]
[1727916790268,0.30429392,61002.0,60992.0,0.0038]